bitfinex-derivatives/quotes_SOLF0:USTF0_20241203
["timestamp","ask_amount","ask_price","bid_price","bid_amount"]
[1733234315573,2.2909,218.26,218.05,34.8603813]
[1733234315767,34.8603813,218.27,218.05,34.8603813]
[1733234316270,34.8603813,218.29,218.05,34.8603813]
[1733234316568,2.2911,218.24,218.1,2.2925]
[1733234316775,34.8603813,218.29,218.04,34.8603813]
[1733234316969,34.8603813,218.25,218.04,34.8603813]
[1733234317468,34.8603813,218.21,218.03,2.7893]
[1733234317668,34.8603813,218.25,218.04,34.8603813]
[1733234317972,34.8603813,218.44,218.22,34.8603813]
[1733234318866,34.8603813,218.46,218.22,34.8603813]
[1733234319078,34.8603813,218.46,218.26,34.8603813]
[1733234319264,34.8603813,218.46,218.29,2.2904]
[1733234319265,2.2892,218.42,218.29,2.2904]
[1733234319576,34.8603813,218.46,218.26,34.8603813]
[1733234319867,34.8603813,218.33,218.2,39.17996]
[1733234320076,34.8603813,218.29,218.2,39.17996]
[1733234320370,34.8603813,218.25,218.02,34.8603813]
[1733234320571,34.8603813,218.17,217.97,34.8603813]
[1733234320769,34.8603813,218.19,217.97,34.8603813]
[1733234320974,34.8603813,218.11,217.91,34.8603813]
[1733234321364,2.2927,218.08,217.98,2.2937]
[1733234321568,34.8603813,218.11,217.91,34.8603813]
[1733234321770,34.8603813,218.11,217.9,2.7211]
[1733234321974,2.2926,218.09,217.97,2.2938]
[1733234322174,34.8603813,218.08,217.9,2.7211]
[1733234322376,34.8603813,218.12,217.9,34.8603813]
[1733234322575,2.2926,218.09,217.96,2.2939]
[1733234322869,34.8603813,218.08,217.88,34.8603813]
[1733234323073,2.2933,218.03,217.9,2.2945]
[1733234323268,34.8603813,218.08,217.88,34.8603813]
[1733234323669,34.8603813,218.04,217.85,2.7211]
[1733234323869,34.8603813,218.08,217.85,2.7211]
[1733234324269,34.8603813,218.13,217.88,34.8603813]
[1733234324673,2.2931,218.05,217.92,2.2943]
[1733234324868,34.8603813,218.17,217.96,34.8603813]
[1733234325066,39.35278025,218.34,218.09,34.8603813]
[1733234325268,34.8603813,218.46,218.13,34.8603813]
[1733234325269,34.8603813,218.36,218.13,34.8603813]
[1733234325569,34.8603813,218.46,218.21,34.8603813]
[1733234325769,34.8603813,218.46,218.13,34.8603813]
[1733234325770,13.8,218.71,218.3,34.8603813]
[1733234325979,13.8,218.71,218.24,34.8603813]
[1733234325980,34.8603813,218.48,218.24,34.8603813]
[1733234326169,34.8603813,218.44,218.24,34.8603813]
[1733234326476,34.8603813,218.48,218.24,34.8603813]
[1733234326770,37.1489813,218.48,218.35,2.2898]
[1733234326977,37.1489813,218.48,218.24,34.8603813]
[1733234326978,34.8603813,218.52,218.24,34.8603813]
[1733234327173,34.8603813,218.52,218.31,34.8603813]
[1733234327371,34.8603813,218.57,218.35,34.8603813]
[1733234327972,34.8603813,218.61,218.39,34.8603813]
[1733234328381,34.8603813,218.65,218.43,34.8603813]
[1733234328573,34.8603813,218.65,218.35,34.8603813]
[1733234328574,34.8603813,218.69,218.47,34.8603813]
[1733234328774,34.8603813,218.65,218.47,34.8603813]
[1733234328982,39.28572231,218.78,218.55,34.8603813]
[1733234329183,34.8603813,218.77,218.56,34.8603813]
[1733234329384,2.2855,218.77,218.64,2.2869]
[1733234329676,34.8603813,218.89,218.68,34.8603813]
[1733234329878,34.8603813,218.93,218.72,34.8603813]
[1733234330177,34.8603813,218.98,218.76,34.8603813]
[1733234330376,34.8603813,218.82,218.58,2.6427]
[1733234330572,34.8603813,218.78,218.58,37.5030813]
[1733234330974,34.8603813,218.82,218.58,37.5030813]
[1733234331480,34.8603813,218.69,218.48,34.8603813]
[1733234331679,34.8603813,218.65,218.44,34.8603813]
[1733234331886,34.8603813,218.69,218.48,34.8603813]
[1733234332081,2.2868,218.65,218.5,2.2883]
[1733234332376,34.8603813,218.65,218.44,34.8603813]
[1733234332584,34.8603813,218.61,218.41,2.6427]
[1733234332781,34.8603813,218.61,218.41,37.5030813]
[1733234333081,47.66,218.76,218.41,37.5030813]
[1733234333082,1.0,218.64,218.45,34.8603813]
[1733234333277,1.0,218.64,218.41,37.5030813]
[1733234333778,34.8603813,218.69,218.45,34.8603813]
[1733234334086,34.8603813,218.69,218.49,34.8603813]
[1733234334578,34.8603813,218.65,218.41,2.6427]
[1733234334779,34.8603813,218.79,218.41,2.6427]
[1733234334780,34.8603813,218.6,218.41,2.6427]
[1733234335276,34.8603813,218.64,218.41,37.5030813]
[1733234335477,2.2876,218.59,218.44,2.289]
[1733234335681,34.8603813,218.6,218.41,2.6427]
[1733234336075,34.8603813,218.79,218.41,2.6427]
[1733234336276,27.0734507,218.86,218.24,34.8603813]
[1733234336277,34.8603813,218.5,218.24,6.1823207]
[1733234336480,34.8603813,218.46,218.25,37.6245813]
[1733234336682,34.8603813,218.53,218.33,34.8603813]
[1733234337177,34.8603813,218.53,218.29,34.8603813]
[1733234337785,34.8603813,218.45,218.25,2.7642]
[1733234338184,34.8603813,218.41,218.25,2.7642]
[1733234338682,2.2896,218.41,218.28,2.2908]
[1733234338896,34.8603813,218.46,218.25,2.7642]
[1733234339084,34.8603813,218.4,218.17,34.8603813]
[1733234339284,2.29,218.37,218.24,2.2912]
[1733234339788,34.8603813,218.36,218.14,5.4228]
[1733234340286,34.8603813,218.4,218.14,5.4228]
[1733234340482,34.8603813,218.36,218.14,5.4228]
[1733234340877,34.8603813,218.47,218.24,34.8603813]
[1733234341084,34.8603813,218.49,218.28,34.8603813]
[1733234341283,2.2894,218.44,218.32,2.2906]
[1733234341485,34.8603813,218.49,218.28,34.8603813]
[1733234341787,34.8603813,218.57,218.14,5.4228]
[1733234341788,34.8603813,218.33,218.14,2.5986]
[1733234341982,2.2923,218.17,218.1,55.26823287]
[1733234342287,34.8603813,218.21,218.1,55.26823287]
[1733234342582,2.2929,218.11,218.04,156.231237]
[1733234342784,34.8603813,218.13,218.04,156.231237]
[1733234343185,1.0,218.2,218.04,156.231237]
[1733234343581,2.2935,218.06,218.04,18.63952754]
[1733234343880,34.8603813,218.08,217.87,53.69073759]
[1733234344086,34.8603813,218.12,217.91,34.8603813]
[1733234344284,34.8603813,218.12,217.87,34.8603813]
[1733234344488,34.8603813,218.08,217.87,34.8603813]
[1733234344686,2.2926,218.14,218.01,2.2939]
[1733234344885,34.8603813,218.17,217.95,34.8603813]
[1733234345086,1.0,218.2,217.99,34.8603813]
[1733234345388,34.8603813,218.18,217.83,47.68]
[1733234345687,2.2934,218.08,217.93,2.2949]
[1733234345885,34.8603813,218.1,217.93,2.2949]
[1733234346188,34.8603813,218.13,217.92,34.8603813]
[1733234346581,34.8603813,218.19,217.96,34.8603813]
[1733234346784,2.2925,218.17,218.02,2.2939]
[1733234346983,34.8603813,218.11,217.91,34.8603813]
[1733234347184,34.8603813,218.15,217.91,34.8603813]
[1733234347688,34.8603813,218.03,217.84,2.6076]
[1733234348094,34.8603813,218.11,217.87,34.8603813]
[1733234348295,34.8603813,218.03,217.84,2.6076]
[1733234348694,2.2936,218.06,217.86,34.8603813]
[1733234348892,34.8603813,218.03,217.84,2.6076]
[1733234349094,34.8603813,218.03,217.91,2.295]
[1733234349287,34.8603813,218.03,217.84,2.6076]
[1733234349495,34.8603813,218.08,217.84,2.6076]
[1733234349698,34.8603813,218.12,217.93,34.8603813]
[1733234349996,34.8603813,218.2,218.01,34.8603813]
[1733234350299,34.8603813,218.35,217.91,34.8603813]
[1733234350300,34.8603813,218.16,217.91,34.8603813]
[1733234350790,34.8603813,218.08,217.87,34.8603813]
[1733234351192,34.8603813,218.08,217.96,2.2945]
[1733234351397,34.8603813,218.04,217.84,2.6076]
[1733234351592,34.8603813,217.96,217.82,2.6454]
[1733234351791,34.8603813,217.96,217.82,4.9414]
[1733234351993,34.8603813,217.96,217.82,2.6454]
[1733234352189,34.8603813,217.96,217.74,34.8603813]
[1733234352396,34.8603813,218.01,217.79,34.8603813]
[1733234352893,34.8603813,217.97,217.75,34.8603813]
[1733234353396,34.8603813,218.02,217.92,2.2949]
[1733234353591,34.8603813,218.1,217.91,34.8603813]
[1733234353793,34.8603813,218.24,217.91,34.8603813]
[1733234353794,34.8603813,218.18,217.95,34.8603813]
[1733234353991,2.2919,218.21,218.1,2.293]
[1733234354192,34.8603813,218.15,217.95,34.8603813]
[1733234354398,34.8603813,218.24,217.75,2.8321]
[1733234354593,34.8603813,218.07,217.88,34.8603813]
[1733234354899,34.8603813,218.13,217.92,34.8603813]
[1733234355197,34.8603813,218.09,217.88,34.8603813]
[1733234355390,34.8603813,218.13,217.92,34.8603813]
[1733234355590,34.8603813,218.24,218.01,34.8603813]
[1733234355801,34.8603813,218.2,218.01,34.8603813]
[1733234356098,34.8603813,218.2,217.97,34.8603813]
[1733234356290,47.72,218.38,218.05,34.8603813]
[1733234356490,34.8603813,218.28,218.09,34.8603813]
[1733234356692,34.8603813,218.24,218.03,2.6098]
[1733234357091,34.8603813,218.24,218.06,34.8603813]
[1733234357295,34.8603813,218.35,218.04,2.6072]
[1733234357296,34.8603813,218.2,218.04,2.6072]
[1733234357800,2.2925,218.16,218.04,2.6072]
[1733234358100,34.8603813,218.2,218.04,2.6072]
[1733234358299,34.8603813,218.2,218.07,2.2933]
[1733234358492,34.8603813,218.2,218.04,2.6072]
[1733234358693,34.8603813,218.35,217.31,6.1823207]
[1733234358694,34.8603813,218.08,217.86,2.6072]
[1733234358902,34.8603813,218.08,217.87,34.8603813]
[1733234359298,2.2939,218.02,217.91,2.295]
[1733234359498,34.8603813,218.0,217.86,2.6072]
[1733234359701,34.8603813,218.0,217.78,34.8603813]
[1733234359896,34.8603813,218.0,217.82,34.8603813]
[1733234360093,34.8603813,218.0,217.78,34.8603813]
[1733234361102,34.8603813,217.96,217.77,2.7186]
[1733234361298,34.8603813,218.05,217.82,34.8603813]
[1733234361494,34.8603813,218.09,217.86,34.8603813]
[1733234361702,2.2944,217.98,217.8,82.6003813]
[1733234361895,34.8603813,218.01,217.8,82.6003813]
[1733234362799,1.0,218.19,217.8,82.6003813]
[1733234363002,34.8603813,218.04,217.84,34.8603813]
[1733234363197,37.1545813,218.0,217.89,2.2952]
[1733234363395,34.8603813,218.04,217.84,34.8603813]
[1733234363601,34.8603813,218.13,217.84,34.8603813]
[1733234363602,34.8603813,218.08,217.84,34.8603813]
[1733234363898,1.0,218.19,217.88,34.8603813]
[1733234363899,34.8603813,218.12,217.88,34.8603813]
[1733234364106,34.8603813,218.08,217.88,34.8603813]
[1733234364305,34.8603813,218.13,217.88,34.8603813]
[1733234364501,34.8603813,218.13,217.92,34.8603813]
[1733234364809,2.2934,218.07,217.88,34.8603813]
[1733234365100,34.8603813,218.13,217.92,34.8603813]
[1733234365304,34.8603813,218.17,217.96,34.8603813]
[1733234365505,34.8603813,218.17,217.97,2.7442]
[1733234365708,34.8603813,218.25,218.04,34.8603813]
[1733234365904,2.2916,218.24,218.15,2.2925]
[1733234366105,34.8603813,218.29,218.15,2.2925]
[1733234366405,34.8603813,218.29,218.01,47.74]
[1733234366610,34.8603813,218.57,218.11,34.8603813]
[1733234366799,34.8603813,218.57,218.22,2.2918]
[1733234366800,2.2904,218.36,218.22,2.2918]
[1733234367005,34.8603813,218.39,218.16,2.7996]
[1733234367209,34.8603813,218.35,218.16,2.7996]
[1733234367404,34.8603813,218.39,218.2,34.8603813]
[1733234367807,34.8603813,218.39,218.17,2.5804]
[1733234368002,1.0,218.52,218.23,34.8603813]
[1733234368003,34.8603813,218.43,218.23,34.8603813]
[1733234368711,34.8603813,218.47,218.23,34.8603813]
[1733234368917,2.2893,218.46,218.34,2.2905]
[1733234369210,1.0,218.52,218.22,47.72]
[1733234369211,34.8603813,218.51,218.31,34.8603813]
[1733234369809,2.2887,218.52,218.35,34.8603813]
[1733234370015,2.2887,218.52,218.36,2.6124]
[1733234370214,34.8603813,218.51,218.36,2.6124]
[1733234370414,34.8603813,218.47,218.36,2.6124]
[1733234370713,34.8603813,218.43,218.23,34.8603813]
[1733234370908,34.8603813,218.57,218.23,34.8603813]
[1733234370909,34.8603813,218.47,218.27,34.8603813]
[1733234371110,34.8603813,218.51,218.31,34.8603813]
[1733234371311,34.8603813,218.57,218.35,34.8603813]
[1733234371504,34.8603813,218.57,218.38,2.29]
[1733234371505,2.2888,218.51,218.38,2.29]
[1733234371710,34.8603813,218.57,218.39,34.8603813]
[1733234371905,34.8603813,218.61,218.39,34.8603813]
[1733234372112,34.8603813,218.57,218.4,2.8117]
[1733234372315,34.8603813,218.53,218.4,2.8117]
[1733234372509,34.8603813,218.53,218.34,2.7331]
[1733234372714,2.2894,218.46,218.34,2.7331]
[1733234373010,34.8603813,218.44,218.25,2.8117]
[1733234373309,2.2909,218.31,218.19,2.2921]
[1733234373510,34.8603813,218.32,218.13,34.8603813]
[1733234373913,34.8603813,218.36,218.13,34.8603813]
[1733234374109,1.0,218.45,218.09,34.8603813]
[1733234374110,34.8603813,218.32,218.09,34.8603813]
[1733234374314,2.2911,218.29,218.16,2.2924]
[1733234374516,34.8603813,218.24,218.05,34.8603813]
[1733234374711,34.8603813,218.24,218.03,56.0513]
[1733234375316,34.8603813,218.24,218.05,34.8603813]
[1733234375515,34.8603813,218.24,218.03,56.0513]
[1733234375914,34.8603813,218.24,218.05,34.8603813]
[1733234376208,34.8603813,218.28,218.09,34.8603813]
[1733234376410,34.8603813,218.32,218.13,34.8603813]
[1733234376609,34.8603813,218.32,218.09,34.8603813]
[1733234376816,34.8603813,218.28,218.09,34.8603813]
[1733234377211,34.8603813,218.3,218.13,34.8603813]
[1733234377408,34.8603813,218.3,218.12,34.8603813]
[1733234377608,34.8603813,218.34,218.16,34.8603813]
[1733234378318,34.8603813,218.34,218.11,34.8603813]
[1733234378514,34.8603813,218.34,218.15,34.8603813]
[1733234378816,1.0,218.45,218.23,34.8603813]
[1733234378817,34.8603813,218.42,218.23,34.8603813]
[1733234379116,34.8603813,218.34,218.12,34.8603813]
[1733234379315,34.8603813,218.26,218.08,34.8603813]
[1733234379513,34.8603813,218.26,218.03,56.0513]
[1733234380617,34.8603813,218.3,218.03,56.0513]
[1733234380814,34.8603813,218.3,218.09,34.8603813]
[1733234381412,2.2913,218.25,218.13,2.2925]
[1733234381619,2.2913,218.25,218.09,34.8603813]
[1733234381812,34.8603813,218.34,218.09,34.8603813]
[1733234382017,2.2908,218.3,218.17,2.2921]
[1733234382218,34.8603813,218.34,218.13,34.8603813]
[1733234382416,34.8603813,218.38,218.17,34.8603813]
[1733234382622,7.2125185,218.37,218.21,34.8603813]
[1733234382918,34.8603813,218.42,218.22,5.3938]
[1733234383121,7.21291153,218.41,218.22,5.3938]
[1733234383320,7.21291153,218.4,218.22,5.3938]
[1733234383515,34.8603813,218.42,218.27,2.291]
[1733234383516,2.29,218.38,218.27,2.291]
[1733234383711,34.8603813,218.46,218.25,34.8603813]
[1733234383919,7.21462331,218.45,218.25,34.8603813]
[1733234384112,34.8603813,218.42,218.22,5.3938]
[1733234384318,7.21462331,218.41,218.22,5.3938]
[1733234384518,34.8603813,218.46,218.22,5.3938]
[1733234384714,2.2901,218.37,218.22,5.3938]
[1733234384918,34.8603813,218.46,218.22,5.3938]
[1733234385220,7.21375939,218.45,218.22,5.3938]
[1733234385523,34.8603813,218.41,218.22,5.3938]
[1733234385725,34.8603813,218.45,218.22,5.3938]
[1733234385913,34.8603813,218.37,218.22,2.7236]
[1733234386113,34.8603813,218.29,218.08,34.8603813]
[1733234386814,34.8603813,218.35,218.12,34.8603813]
[1733234387021,2.2911,218.27,218.18,2.292]
[1733234387222,2.2911,218.27,218.04,5.3861]
[1733234387223,34.8603813,218.35,218.16,34.8603813]
[1733234387519,34.8603813,218.45,218.2,34.8603813]
[1733234387717,7.20155698,218.44,218.2,34.8603813]
[1733234387911,7.20155698,218.43,218.2,34.8603813]
[1733234388111,34.8603813,218.45,218.26,2.2912]
[1733234388323,7.19889635,218.44,218.26,2.2912]
[1733234388519,34.8603813,218.45,218.24,34.8603813]
[1733234388818,34.8603813,218.49,218.28,34.8603813]
[1733234389024,7.1996015,218.48,218.33,34.8603813]
[1733234389217,34.8603813,218.44,218.29,2.6858]
[1733234389421,34.8603813,218.57,218.29,2.6858]
[1733234389422,34.8603813,218.4,218.29,2.6858]
[1733234389716,34.8603813,218.32,218.11,34.8603813]
[1733234389919,34.8603813,218.36,218.15,34.8603813]
[1733234390424,34.8603813,218.32,218.12,2.6858]
[1733234391324,2.2911,218.27,218.12,2.6858]
[1733234391617,34.8603813,218.36,218.16,34.8603813]
[1733234391820,34.8603813,218.32,218.12,37.5461813]
[1733234392221,34.8603813,218.36,218.16,34.8603813]
[1733234392821,34.8603813,218.4,218.2,34.8603813]
[1733234393122,34.8603813,218.44,218.2,34.8603813]
[1733234393320,7.19840394,218.43,218.2,34.8603813]
[1733234393623,34.8603813,218.4,218.2,34.8603813]
[1733234393819,7.19840394,218.39,218.2,34.8603813]
[1733234394017,34.8603813,218.4,218.2,34.8603813]
[1733234394325,34.8603813,218.44,218.2,34.8603813]
[1733234394521,7.20333931,218.43,218.2,34.8603813]
[1733234394819,7.20333931,218.42,218.2,34.8603813]
[1733234395017,7.20333931,218.41,218.2,34.8603813]
[1733234395323,34.8603813,218.36,218.16,34.8603813]
[1733234395618,34.8603813,218.4,218.16,34.8603813]
[1733234395820,34.8603813,218.36,218.16,34.8603813]
[1733234396017,34.8603813,218.36,218.12,37.5461813]
[1733234396218,7.20198349,218.35,218.16,34.8603813]
[1733234396423,34.8603813,218.36,218.16,34.8603813]
[1733234396619,2.2909,218.29,218.16,34.8603813]
[1733234396816,34.8603813,218.36,218.16,34.8603813]
[1733234397021,2.2906,218.32,218.22,2.2916]
[1733234397217,2.2906,218.32,218.16,34.8603813]
[1733234397624,34.8603813,218.36,218.16,34.8603813]
[1733234397821,7.20822124,218.35,218.16,34.8603813]
[1733234398027,2.2903,218.35,218.22,2.2916]
[1733234398220,34.8603813,218.4,218.2,34.8603813]
[1733234398423,7.217737,218.39,218.2,34.8603813]
[1733234398628,2.2898,218.4,218.24,34.8603813]
[1733234399026,2.2891,218.47,218.39,2.2898]
[1733234399320,7.2200496,218.46,218.32,34.8603813]
[1733234399521,34.8603813,218.57,218.33,2.7621]
[1733234399721,34.8603813,218.53,218.33,2.7621]
[1733234399928,7.22017851,218.52,218.33,2.7621]
[1733234400117,2.289,218.47,218.39,2.2898]
[1733234400428,34.8603813,218.53,218.33,2.7621]
[1733234400621,2.2893,218.44,218.37,2.29]
[1733234400821,34.8603813,218.42,218.25,2.7487]
[1733234401322,34.8603813,218.5,218.29,34.8603813]
[1733234401521,7.22342391,218.49,218.33,34.8603813]
[1733234401719,34.8603813,218.54,218.29,34.8603813]
[1733234401720,7.22342391,218.48,218.29,34.8603813]
[1733234401918,34.8603813,218.46,218.25,37.6090813]
[1733234402519,34.8603813,218.54,218.25,2.7487]
[1733234402520,34.8603813,218.42,218.25,2.7487]
[1733234403333,2.2904,218.34,218.25,2.7487]
[1733234403721,2.2913,218.25,218.2,2.2918]
[1733234403925,34.8603813,218.34,218.14,2.7621]
[1733234403926,34.8603813,218.3,218.14,2.7621]
[1733234404127,7.21374025,218.29,218.14,2.7621]
[1733234404322,34.8603813,218.3,218.14,2.7621]
[1733234404526,7.21493328,218.29,218.14,2.7621]
[1733234404725,34.8603813,218.34,218.14,2.7621]
[1733234404920,34.8603813,218.25,218.07,0.43802]
[1733234405126,34.8603813,218.21,218.07,0.43802]
[1733234405326,34.8603813,218.25,218.07,0.43802]
[1733234405727,7.22133026,218.24,218.07,0.43802]
[1733234405923,34.8603813,218.25,218.07,0.43802]
[1733234406128,7.21821111,218.24,218.07,0.43802]
[1733234406330,7.21821111,218.23,218.07,0.43802]
[1733234406627,34.8603813,218.29,218.09,34.8603813]
[1733234406826,7.23140036,218.28,218.09,34.8603813]
[1733234407033,34.8603813,218.25,218.07,0.43802]
[1733234407222,7.23140036,218.24,218.07,0.43802]
[1733234407622,34.8603813,218.21,218.07,0.43802]
[1733234407830,7.23140036,218.2,218.07,0.43802]
[1733234408528,34.8603813,218.25,218.07,0.43802]
[1733234408529,7.23140036,218.19,218.07,0.43802]
[1733234408727,34.8603813,218.2,218.07,0.43802]
[1733234409129,7.24886916,218.19,218.07,0.43802]
[1733234409330,34.8603813,218.16,218.07,0.43802]
[1733234409533,7.25380832,218.15,218.07,0.43802]
[1733234409830,34.8603813,218.08,218.07,0.43802]
[1733234410031,42.11418962,218.08,218.07,0.43802]
[1733234410230,42.11418962,218.08,217.87,34.8603813]
[1733234410729,34.8603813,218.0,217.82,34.8603813]
[1733234411031,7.25380832,217.99,217.82,34.8603813]
[1733234411530,7.25380832,217.98,217.82,34.8603813]
[1733234411830,34.8603813,217.96,217.81,5.3968]
[1733234412021,34.8603813,217.96,217.74,82.5603813]
[1733234412022,34.8603813,217.92,217.74,82.5603813]
[1733234412226,34.8603813,217.92,217.71,2.8366]
[1733234412525,295.68779326,218.24,217.85,34.8603813]
[1733234412724,295.68779326,218.24,217.81,34.8603813]
[1733234412725,34.8603813,218.09,217.89,34.8603813]
[1733234412923,34.8603813,218.05,217.85,34.8603813]
[1733234413231,34.8603813,218.17,217.97,34.8603813]
[1733234413529,7.21960333,218.16,218.05,34.8603813]
[1733234413728,34.8603813,218.3,218.09,34.8603813]
[1733234413931,7.22396752,218.29,218.09,34.8603813]
[1733234414124,34.8603813,218.26,218.06,34.8603813]
[1733234414326,34.8603813,218.22,218.02,34.8603813]
[1733234414930,34.8603813,218.26,218.02,34.8603813]
[1733234415130,34.8603813,218.26,218.06,34.8603813]
[1733234415333,34.8603813,218.22,218.02,34.8603813]
[1733234415828,34.8603813,218.26,218.02,34.8603813]
[1733234416032,34.8603813,218.26,218.06,34.8603813]
[1733234416230,34.8603813,218.22,218.02,34.8603813]
[1733234416435,34.8603813,218.22,217.99,2.8601]
[1733234416436,34.8603813,218.18,217.99,2.8601]
[1733234416736,3.66,218.21,217.99,2.8601]
[1733234417637,3.66,218.21,218.02,34.8603813]
[1733234418231,3.66,218.21,218.06,34.8603813]
[1733234418438,17.78,218.2,218.02,34.8603813]
[1733234419029,17.78,218.2,218.1,34.8603813]
[1733234419229,17.78,218.2,218.11,5.6489]
[1733234419635,20.98,218.2,218.11,5.6489]
[1733234419829,34.8603813,218.35,218.14,34.8603813]
[1733234420337,34.8603813,218.35,218.11,2.7942]
[1733234420532,34.8603813,218.28,218.11,2.7942]
[1733234420929,34.8603813,218.32,218.11,2.7942]
[1733234421129,2.8257,218.45,218.18,34.8603813]
[1733234421330,34.8603813,218.41,218.22,34.8603813]
[1733234421537,7.24028214,218.4,218.22,34.8603813]
[1733234421834,34.8603813,218.36,218.2,47.7]
[1733234422034,34.8603813,218.28,218.11,2.7942]
[1733234422228,42.10066344,218.35,218.11,2.7942]
[1733234422229,34.8603813,218.24,218.11,2.7942]
[1733234422433,34.8603813,218.28,218.11,2.7942]
[1733234422733,34.8603813,218.36,218.13,34.8603813]
[1733234422936,7.24294381,218.35,218.21,34.8603813]
[1733234423236,5.13,218.4,218.25,34.8603813]
[1733234423541,82.5603813,218.79,218.37,34.8603813]
[1733234423738,7.24862193,218.56,218.37,34.8603813]
[1733234423944,7.24862193,218.55,218.37,34.8603813]
[1733234424237,7.24862193,218.54,218.35,34.8603813]
[1733234424436,2.6244,218.67,218.35,34.8603813]
[1733234424735,2.73,218.53,218.4,34.8603813]
[1733234424932,2.73,218.53,218.44,34.8603813]
[1733234425132,34.8603813,218.73,218.52,34.8603813]
[1733234425336,34.8603813,218.65,218.36,2.6526]
[1733234425535,34.8603813,218.61,218.41,34.8603813]
[1733234427234,34.8603813,218.61,218.36,2.6526]
[1733234427235,34.8603813,218.69,218.49,34.8603813]
[1733234427439,7.23244625,218.68,218.49,34.8603813]
[1733234427633,7.23244625,218.67,218.49,34.8603813]
[1733234428235,7.23244625,218.67,218.53,34.8603813]
[1733234428537,34.8603813,218.79,218.57,34.8603813]
[1733234428739,34.8603813,218.79,218.61,34.8603813]
[1733234429141,37.1462813,218.79,218.61,34.8603813]
[1733234429337,34.8603813,218.83,218.61,34.8603813]
[1733234429534,2.2856,218.82,218.67,2.287]
[1733234429740,34.8603813,218.83,218.65,34.8603813]
[1733234430136,37.1458813,218.83,218.65,34.8603813]
[1733234430341,34.8603813,218.87,218.69,34.8603813]
[1733234430744,34.8603813,218.83,218.61,34.8603813]
[1733234431046,34.8603813,218.87,218.58,2.7128]
[1733234431047,34.8603813,218.78,218.58,2.7128]
[1733234431545,34.8603813,218.74,218.53,34.8603813]
[1733234431741,34.8603813,218.7,218.5,47.68]
[1733234431941,34.8603813,218.79,218.41,34.8603813]
[1733234431942,34.8603813,218.62,218.41,34.8603813]
[1733234432243,2.2876,218.63,218.49,2.289]
[1733234432439,2.7058,218.69,218.49,34.8603813]
[1733234432644,34.8603813,218.74,218.53,34.8603813]
[1733234433144,7.187728,218.73,218.57,34.8603813]
[1733234433341,34.8603813,218.83,218.67,2.2871]
[1733234433644,7.18440826,218.82,218.61,34.8603813]
[1733234433844,7.18440826,218.82,218.69,34.8603813]
[1733234434450,2.7058,218.89,218.73,34.8603813]
[1733234435147,1.40576,218.9,218.77,34.8603813]
[1733234435848,1.40576,218.9,218.58,13.81]
[1733234436249,1.40576,218.9,218.72,34.8603813]
[1733234436459,1.40576,218.9,218.76,34.8603813]
[1733234436759,1.40576,218.9,218.68,34.8603813]
[1733234436760,1.40576,218.9,218.8,34.8603813]
[1733234437059,1.40576,218.9,218.57,34.8603813]
[1733234437263,1.40576,218.9,218.73,34.8603813]
[1733234437459,2.2849,218.88,218.76,2.2861]
[1733234437754,2.5962,219.04,218.54,5.5103]
[1733234437755,6.8349,219.52,218.87,34.8603813]
[1733234437955,11.3838,219.67,218.82,2.2855]
[1733234437956,2.2843,218.94,218.82,2.2855]
[1733234438154,34.8603813,219.03,218.82,34.8603813]
[1733234438557,34.8603813,219.03,218.78,34.8603813]
[1733234439055,34.8603813,219.03,218.68,48.6703813]
[1733234439056,34.8603813,218.99,218.74,37.1466813]
[1733234439261,34.8603813,218.95,218.74,34.8603813]
[1733234439457,34.8603813,218.95,218.69,34.8603813]
[1733234439658,2.285,218.88,218.76,2.2861]
[1733234439860,25.11,218.94,218.54,53.1103]
[1733234440056,2.74,218.93,218.69,34.8603813]
[1733234440258,2.74,218.93,218.73,34.8603813]
[1733234441058,2.74,218.93,218.57,34.8603813]
[1733234441059,34.8603813,218.91,218.69,34.8603813]
[1733234441455,2.74,218.93,218.73,34.8603813]
[1733234441859,2.2845,218.92,218.8,2.2857]
[1733234442056,2.74,218.93,218.77,34.8603813]
[1733234442451,25.11,218.94,218.84,2.2853]
[1733234442657,3.64,219.51,218.93,34.8603813]
[1733234442860,3.64,219.51,218.79,48.6703813]
[1733234442861,34.8603813,219.1,218.86,34.8603813]
[1733234443061,34.8603813,219.1,218.9,34.8603813]
[1733234443260,34.8603813,219.14,218.9,34.8603813]
[1733234443556,5.4605,219.15,219.02,34.8603813]
[1733234443557,2.6698,219.15,219.02,34.8603813]
[1733234443751,2.6698,219.15,218.98,34.8603813]
[1733234444159,2.7907,219.3,219.02,34.8603813]